bitfinex/quotes_SOLUSD_20240825
["timestamp","ask_amount","ask_price","bid_price","bid_amount"]
[1724548899386,0.3168929,160.13,160.11,1.56364553]
[1724548899579,0.3168929,160.13,160.08,20.0]
[1724548899788,0.3168929,160.13,160.1,2.74407972]
[1724548899986,0.3168929,160.13,160.09,4.30729272]
[1724548900282,0.3168929,160.13,160.1,4.30729217]
[1724548900478,9.94139885,160.13,160.11,1.5632956]
[1724548900662,9.94139885,160.13,160.08,20.0]
[1724548900663,9.94139885,160.13,160.09,2.74411121]
[1724548900862,9.94139885,160.13,160.1,1.5633477]
[1724548901080,9.94139885,160.13,160.11,1.5633477]
[1724548901261,9.94139885,160.13,160.08,20.0]
[1724548901468,9.94139885,160.13,160.09,1.56348823]
[1724548901660,9.94139885,160.13,160.1,1.56348823]
[1724548901861,9.94139885,160.13,160.08,20.0]
[1724548902092,9.94139885,160.13,160.09,1.56345285]
[1724548902379,9.94139885,160.13,160.1,1.56345285]
[1724548902584,9.94139885,160.13,160.08,20.0]
[1724548902790,9.94139885,160.13,160.09,1.56345262]
[1724548902964,9.94139885,160.13,160.1,1.56345262]
[1724548903166,9.94139885,160.13,160.08,20.0]
[1724548903381,9.94139885,160.13,160.09,1.56345239]
[1724548903566,9.94139885,160.13,160.1,1.56345239]
[1724548903762,9.94139885,160.13,160.08,20.0]
[1724548903962,9.94139885,160.13,160.09,1.56345254]
[1724548904162,9.94139885,160.13,160.08,20.0]
[1724548904163,9.94139885,160.13,160.1,1.56345254]
[1724548904392,0.3168929,160.13,160.11,1.5633828]
[1724548904687,0.3168929,160.13,160.08,20.0]
[1724548904983,0.3168929,160.13,160.09,4.30758887]
[1724548905189,0.3168929,160.13,160.1,1.56338302]
[1724548905375,0.3168929,160.13,160.11,1.56338302]
[1724548905687,0.3168929,160.13,160.09,2.74406858]
[1724548905986,6.5455,160.11,160.1,1.56332554]
[1724548906283,6.5455,160.11,159.98,16.5196]
[1724548906583,9.62450595,160.07,160.02,1.56378216]
[1724548906889,9.62450595,160.07,160.03,1.56378216]
[1724548907079,9.62450595,160.07,160.04,4.30894702]
[1724548907275,9.62450595,160.09,160.05,1.56378216]
[1724548907474,9.62450595,160.09,160.0,2.74550019]
[1724548907776,9.62450595,160.09,160.01,4.30938617]
[1724548907979,9.62450595,160.09,160.02,4.30938617]
[1724548908177,9.62450595,160.09,160.03,4.30938617]
[1724548908375,9.62450595,160.09,160.04,1.56388598]
[1724548908577,9.62450595,160.09,160.05,1.56388598]
[1724548908883,9.62450595,160.09,160.02,2.74538327]
[1724548909073,9.62450595,160.09,160.03,4.30926152]
[1724548909268,9.62450595,160.09,160.04,2.81330584]
[1724548909581,9.62450595,160.07,160.05,1.56387825]
[1724548909773,9.62450595,160.07,160.01,20.0]
[1724548909974,9.62450595,160.07,160.02,4.3094527]
[1724548910189,9.62450595,160.07,160.03,1.56393089]
[1724548910387,9.62450595,160.07,160.04,1.56393089]
[1724548910570,9.62450595,160.07,160.01,20.0]
[1724548910771,9.62450595,160.07,160.02,4.30939262]
[1724548911070,9.62450595,160.07,160.03,4.30939262]
[1724548911265,9.62450595,160.07,160.04,1.56391322]
[1724548911490,9.62450595,160.07,160.02,2.7454794]
[1724548911676,9.62450595,160.07,160.03,4.30940113]
[1724548911873,9.62450595,160.07,160.04,1.56392173]
[1724548912076,9.62450595,160.07,160.02,2.7454794]
[1724548912276,9.62450595,160.07,160.03,1.56391755]
[1724548912498,9.62450595,160.07,160.04,1.56391755]
[1724548912698,9.62450595,160.07,160.01,20.0]
[1724548912873,9.62450595,160.07,160.02,2.74558339]
[1724548913066,9.62450595,160.07,160.03,1.56395655]
[1724548913380,9.62450595,160.07,160.01,20.0]
[1724548913577,9.62450595,160.07,160.02,1.56399182]
[1724548913784,9.62450595,160.07,160.03,1.56399182]
[1724548914099,9.62450595,160.07,160.01,20.0]
[1724548915798,9.62450595,160.07,159.99,20.0]
[1724548915982,9.62450595,160.07,160.0,2.74577045]
[1724548916595,9.62450595,160.07,160.0,47.74577045]
[1724548916798,9.62450595,160.09,160.01,21.24946444]
[1724548918379,9.62450595,160.09,160.01,20.0]
[1724548919696,9.62450595,160.09,160.02,1.24943167]
[1724548920016,9.62450595,160.09,160.01,20.0]
[1724548920812,9.62450595,160.07,160.01,20.0]
[1724548921902,16.4631,160.06,160.01,20.0]
[1724548922329,16.4631,160.06,159.97,20.0]
[1724548922534,16.4631,160.06,159.98,47.7455956]
[1724548922832,16.4631,160.06,159.99,22.7455956]
[1724548923128,16.4631,160.06,160.0,2.7455956]
[1724548924442,16.4631,160.06,159.99,20.0]
[1724548924813,16.4631,160.06,160.0,2.74564851]
[1724548925528,16.10400595,160.05,160.0,2.74564851]
[1724548926029,16.10400595,160.05,159.99,20.0]
[1724548927524,9.62450595,160.03,159.99,20.0]
[1724548927844,9.62450595,160.01,159.92,264.2965812]
[1724548928011,16.4631,160.0,159.91,17.64913363]
[1724548929214,16.4631,160.0,159.92,45.0]
[1724548929415,16.4631,160.0,159.93,20.0]
[1724548929643,9.62450595,159.99,159.94,45.0]
[1724548929832,9.62450595,159.99,159.92,53.02462768]
[1724548930339,9.62450595,159.99,159.92,8.02462768]
[1724548930542,9.62450595,159.99,159.93,1.25009523]
[1724548931019,9.62450595,159.99,159.93,20.0]
[1724548931345,16.10400595,159.99,159.93,20.0]
[1724548931519,16.10400595,159.99,159.94,1.25009615]
[1724548932144,16.4631,160.0,159.94,1.25009615]
[1724548932312,6.6063,160.03,159.95,17.64913363]
[1724548932516,6.6063,160.03,159.97,9.62450595]
[1724548932741,6.6063,160.03,159.98,66.24970264]
[1724548932923,6.6063,160.03,159.99,1.24970087]
[1724548933242,6.6063,160.03,159.98,65.0]
[1724548935046,16.1542,160.04,159.99,1.24970186]
[1724548935943,16.1542,160.04,159.98,65.0]
[1724548936326,9.62450595,160.03,159.98,20.0]
[1724548936528,9.62450595,160.03,159.96,20.0]
[1724548938551,16.1542,160.04,159.97,45.0]
[1724548938749,16.1542,160.04,159.98,20.0]
[1724548940545,9.62450595,160.03,159.98,20.0]
[1724548941932,9.62450595,160.03,159.94,20.0]
[1724548942134,9.62450595,160.03,159.95,45.0]
[1724548942348,9.62450595,160.03,159.96,20.0]
[1724548943155,16.1542,160.04,159.97,10.874306]
[1724548943453,16.1542,160.04,159.98,20.0]
[1724548943752,16.1542,160.04,159.99,46.24964439]
[1724548943958,16.1542,160.04,160.0,20.0]
[1724548944129,16.1542,160.04,160.01,1.24964461]
[1724548944731,16.1542,160.04,160.0,20.0]
[1724548945559,16.1542,160.04,160.01,1.24963341]
[1724548945744,16.1542,160.04,160.0,20.0]
[1724548948663,6.6063,160.07,160.01,1.24963485]
[1724548948956,16.23080595,160.07,160.01,1.24963485]
[1724548949758,16.23080595,160.07,160.0,20.0]
[1724548954161,9.62450595,160.03,160.0,20.0]
[1724548954466,9.62450595,160.03,159.94,20.0]
[1724548954650,9.62450595,160.03,159.94,28.02462768]
[1724548955659,9.62450595,160.03,159.95,45.0]
[1724548956080,21.8708,160.02,159.95,45.0]
[1724548956251,9.62450595,160.01,159.94,8.02462768]
[1724548956841,9.62450595,159.99,159.94,8.02462768]
[1724548957147,9.62450595,159.99,159.91,15.2969]
[1724548957360,9.62450595,159.99,159.92,9.27474391]
[1724548958240,9.62450595,159.99,159.93,20.0]
[1724548959876,9.62450595,160.01,159.93,20.0]
[1724548960163,9.62450595,160.01,159.94,1.25011779]
[1724548961760,9.62450595,160.01,159.93,20.0]
[1724548967457,9.62450595,159.99,159.93,20.0]
[1724548967659,9.62450595,159.99,159.9,20.0]
[1724548968976,9.62450595,159.99,159.9,28.02462768]
[1724548972684,21.8708,160.02,159.9,28.02462768]
[1724548972883,9.62450595,159.98,159.9,28.02462768]
[1724548974393,21.7507,159.97,159.9,28.02462768]
[1724548974588,21.7507,159.97,159.91,1.56468481]
[1724548974765,21.7507,159.97,159.92,1.56468481]
[1724548975085,21.7507,159.97,159.93,1.56468481]
[1724548975288,21.7507,159.97,159.94,1.56468481]
[1724548975492,21.7507,159.97,159.95,1.56468481]
[1724548975678,21.7507,159.97,159.9,28.02462768]
[1724548975881,21.7507,159.97,159.91,1.56475391]
[1724548976076,9.62450595,159.96,159.92,1.56475391]
[1724548976388,9.62450595,159.96,159.88,20.0]
[1724548976587,9.62450595,159.96,159.89,46.564967]
[1724548976789,9.62450595,159.96,159.9,21.564967]
[1724548976977,9.62450595,159.96,159.91,1.564967]
[1724548977291,9.62450595,159.96,159.92,1.564967]
[1724548977495,9.62450595,159.96,159.93,1.56487]
[1724548977785,9.62450595,159.96,159.9,20.0]
[1724548981086,21.7507,159.97,159.85,8.02462768]
[1724548981087,9.62450595,159.94,159.85,8.02462768]
[1724548982672,9.62450595,159.95,159.86,65.0]
[1724548986378,9.62450595,159.95,159.87,2.74839051]
[1724548988805,9.62450595,159.95,159.86,65.0]
[1724548989307,21.7507,159.97,159.87,1.25059465]
[1724548989476,9.62450595,159.96,159.87,21.64804862]
[1724548989677,9.62450595,159.96,159.88,65.0]
[1724548989876,9.62450595,159.96,159.89,1.25043238]
[1724548990581,9.62450595,159.96,159.88,65.0]
[1724548990782,21.7507,159.97,159.88,65.0]
[1724548991008,31.37520595,159.97,159.89,1.25039564]
[1724548991791,21.7507,159.97,159.9,1.2503255]
[1724548992004,9.62450595,160.0,159.9,66.2503255]
[1724548992388,9.62450595,160.0,159.9,65.0]
[1724548994016,9.62450595,159.98,159.9,65.0]
[1724548994220,20.8933,160.01,159.9,65.0]
[1724548994515,9.62450595,159.98,159.9,65.0]
[1724548997914,9.62450595,159.96,159.9,20.0]
[1724548998125,9.62450595,159.96,159.88,20.0]
[1724548998626,9.62450595,159.96,159.89,1.25047265]
[1724548999192,9.62450595,159.96,159.9,1.25047289]
[1724549001492,9.62450595,159.96,159.88,20.0]
[1724549001714,9.62450595,159.96,159.89,1.25047349]
[1724549002296,9.62450595,159.96,159.88,20.0]
[1724549005309,9.62450595,159.94,159.87,8.02462768]
[1724549006029,9.62450595,159.94,159.85,8.02462768]
[1724549006210,9.62450595,159.94,159.86,45.0]
[1724549006609,9.62450595,159.94,159.87,20.0]
[1724549009844,22.3162,159.96,159.83,15.7238]
[1724549009845,9.62450595,159.9,159.83,15.7238]
[1724549010040,9.62450595,159.9,159.79,12.45512693]
[1724549010041,9.62450595,159.88,159.79,28.17892693]
[1724549010333,9.62450595,159.84,159.75,15.7238]
[1724549010931,9.62450595,159.82,159.75,15.7238]
[1724549011120,9.62450595,159.84,159.75,23.74842768]
[1724549011515,9.62450595,159.84,159.76,11.88830293]
[1724549011711,9.62450595,159.84,159.76,15.36345312]
[1724549012021,9.62450595,159.84,159.76,8.02462768]
[1724549012233,9.62450595,159.84,159.76,15.36396846]
[1724549012449,9.62450595,159.84,159.76,8.02462768]
[1724549012837,9.62450595,159.84,159.77,20.0]
[1724549013033,9.62450595,159.82,159.76,20.0]
[1724549013250,9.62450595,159.82,159.75,15.7238]
[1724549013445,9.62450595,159.82,159.73,15.15872768]
[1724549013446,16.1742,159.83,159.73,15.15872768]
[1724549013645,9.62450595,159.8,159.73,8.52462768]
[1724549014848,9.62450595,159.82,159.73,8.52462768]
[1724549015763,16.1742,159.83,159.74,29.27632195]
[1724549015935,16.1742,159.83,159.74,28.02462768]
[1724549016641,16.1742,159.83,159.74,37.64913363]
[1724549016955,15.72450595,159.85,159.75,45.0]
[1724549017161,15.72450595,159.85,159.76,20.0]
[1724549021644,9.62450595,159.83,159.76,20.0]
[1724549023735,15.72450595,159.85,159.76,20.0]
[1724549023943,16.1742,159.87,159.77,17.1104176]
[1724549024258,25.79870595,159.87,159.78,65.0]
[1724549027650,9.62450595,159.85,159.78,20.0]
[1724549027969,9.62450595,159.86,159.78,20.0]
[1724549028146,9.62450595,159.86,159.79,45.0]
[1724549028467,9.62450595,159.86,159.8,20.0]
[1724549031249,9.62450595,159.86,159.77,15.859]
[1724549031569,16.1742,159.87,159.77,15.859]
[1724549031570,9.62450595,159.84,159.77,15.859]
[1724549031752,9.62450595,159.84,159.78,20.0]
[1724549032350,9.62450595,159.82,159.78,20.0]
[1724549032558,9.62450595,159.82,159.74,20.0]
[1724549034863,9.62450595,159.82,159.73,15.5604]
[1724549035255,9.62450595,159.82,159.74,1.25169664]
[1724549035782,9.62450595,159.82,159.73,15.5604]
[1724549036258,9.62450595,159.82,159.74,20.0]
[1724549041661,9.62450595,159.8,159.74,20.0]
[1724549042396,9.62450595,159.82,159.75,1.25180433]
[1724549042990,6.6445,159.84,159.75,1.25180433]
[1724549043309,9.62450595,159.83,159.76,1.25170433]
[1724549044601,9.62450595,159.83,159.74,20.0]
[1724549046204,9.62450595,159.81,159.74,20.0]
[1724549049289,9.62450595,159.81,159.75,1.56637838]
[1724549049707,9.62450595,159.81,159.74,20.0]
[1724549050386,9.62450595,159.81,159.75,1.56644186]
[1724549050600,9.62450595,159.81,159.74,20.0]
[1724549051587,9.62450595,159.81,159.75,1.56644929]
[1724549051986,9.62450595,159.81,159.74,20.0]
[1724549052187,9.62450595,159.79,159.74,20.0]
[1724549054020,9.62450595,159.79,159.73,0.5]
[1724549054221,9.62450595,159.79,159.74,1.56661474]
[1724549054394,9.62450595,159.79,159.75,1.56661474]
[1724549054718,9.62450595,159.79,159.74,1.56661474]
[1724549054919,9.62450595,159.79,159.75,1.56659631]
[1724549055122,9.62450595,159.79,159.73,0.5]
[1724549055413,9.62450595,159.77,159.73,3.25192135]
[1724549055789,9.62450595,159.77,159.73,0.5]
[1724549056707,9.62450595,159.77,159.73,3.25192135]
[1724549056893,9.62450595,159.77,159.73,0.5]
[1724549057315,16.6013,159.82,159.73,4.50391541]
[1724549057519,9.62450595,159.8,159.73,0.5]
[1724549058025,16.6013,159.82,159.73,0.5]
[1724549058026,9.62450595,159.78,159.73,3.25194243]
[1724549058193,9.62450595,159.76,159.73,3.25194243]
[1724549059094,9.62450595,159.76,159.73,0.5]
[1724549060191,9.62450595,159.76,159.73,0.0918299]
[1724549062221,6.2575,159.81,159.73,0.0918299]
[1724549062400,45.0,159.8,159.73,0.0918299]
[1724549062599,9.62450595,159.77,159.73,0.0918299]
[1724549069735,45.0,159.8,159.73,0.0918299]
[1724549070026,9.62450595,159.79,159.73,0.0918299]
[1724549070704,9.62450595,159.77,159.73,0.0918299]
[1724549071508,9.62450595,159.75,159.73,0.0918299]
[1724549073013,9.62450595,159.77,159.73,0.0918299]
[1724549077510,16.6013,159.82,159.73,0.0918299]
[1724549077736,9.62450595,159.83,159.74,15.9127]
[1724549078018,9.62450595,159.85,159.75,25.80251533]
[1724549078228,9.62450595,159.85,159.75,21.25169325]
[1724549078412,9.62450595,159.85,159.76,4.55039178]
[1724549078612,9.62450595,159.85,159.77,4.55039178]
[1724549078828,9.62450595,159.85,159.77,24.55039178]
[1724549079032,9.62450595,159.85,159.75,20.0]
[1724549079235,9.62450595,159.85,159.76,4.5502451]
[1724549079539,9.62450595,159.85,159.75,20.0]
[1724549079711,9.62450595,159.85,159.76,4.55024469]
[1724549079915,9.62450595,159.83,159.76,4.55024469]
[1724549080107,9.62450595,159.83,159.76,4.5505533]
[1724549080412,22.3586,159.86,159.76,4.5505533]
[1724549080633,9.62450595,159.83,159.76,4.5505533]
[1724549081333,9.62450595,159.81,159.76,4.5505533]
[1724549081638,9.62450595,159.81,159.75,20.0]
[1724549088434,6.2559,159.85,159.75,20.0]
[1724549088610,9.62450595,159.85,159.76,5.80224503]
[1724549088811,9.62450595,159.85,159.75,29.62450595]
[1724549089010,9.62450595,159.83,159.76,4.55033806]
[1724549089326,9.62450595,159.83,159.75,20.0]
[1724549090629,9.62450595,159.83,159.76,4.55062962]
[1724549090841,9.62450595,159.83,159.75,20.0]
[1724549091429,9.62450595,159.83,159.76,4.55065349]
[1724549091943,9.62450595,159.83,159.75,20.0]
[1724549092118,9.62450595,159.83,159.76,4.55062921]
[1724549092312,9.62450595,159.83,159.75,20.0]
[1724549092618,9.62450595,159.83,159.76,1.25179095]
[1724549093134,9.62450595,159.83,159.75,20.0]
[1724549093313,9.62450595,159.83,159.76,4.55062921]
[1724549094235,9.62450595,159.83,159.75,20.0]
[1724549095028,9.62450595,159.81,159.75,20.0]
[1724549097139,6.2563,159.84,159.73,0.0918299]
[1724549097140,9.62450595,159.79,159.73,0.0918299]
[1724549098016,9.62450595,159.81,159.73,0.0918299]
[1724549099419,9.62450595,159.79,159.73,0.0918299]
[1724549099623,9.62450595,159.79,159.73,20.0918299]
[1724549100346,9.62450595,159.79,159.73,0.0918299]
[1724549100723,9.62450595,159.77,159.73,0.0918299]
[1724549106767,9.62450595,159.75,159.73,0.0918299]
[1724549107362,9.62450595,159.76,159.73,0.0918299]
[1724549108165,9.62450595,159.74,159.73,0.0918299]
[1724549110745,12.4935,159.77,159.73,0.0918299]
[1724549110945,9.62450595,159.74,159.73,0.0918299]
[1724549121889,54.62450595,159.74,159.73,0.0918299]
[1724549123397,9.62450595,159.74,159.73,0.0918299]
[1724549125302,6.54625403,159.76,159.73,0.0918299]
[1724549125490,9.62450595,159.75,159.73,0.0918299]
[1724549127206,9.62450595,159.75,159.73,0.0918299]
[1724549129570,6.54625403,159.76,159.73,0.0918299]
[1724549129770,9.62450595,159.75,159.73,0.0918299]
[1724549133998,9.62450595,159.77,159.73,0.0918299]
[1724549135004,16.17046219,159.79,159.73,0.0918299]
[1724549135494,9.62450595,159.77,159.73,0.0918299]
[1724549136293,9.62450595,159.75,159.73,0.0918299]
[1724549141105,6.2586,159.78,159.73,0.0918299]
[1724549141407,54.62450595,159.77,159.73,0.0918299]
[1724549144486,9.62450595,159.75,159.73,0.0918299]
[1724549145007,45.0,159.77,159.73,0.0918299]
[1724549145212,9.62450595,159.75,159.73,0.0918299]
[1724549148398,45.0,159.78,159.73,0.0918299]
[1724549148607,9.62450595,159.77,159.73,0.0918299]
[1724549149098,9.62450595,159.75,159.73,0.0918299]
[1724549152197,45.0,159.74,159.73,0.0918299]
[1724549152828,45.0,159.74,159.63,15.4158]
[1724549153127,9.62450595,159.69,159.64,10.10015548]
[1724549153305,9.62450595,159.69,159.65,2.75439857]
[1724549153507,6.2605,159.73,159.63,22.76155691]
[1724549153703,9.62450595,159.71,159.64,2.75462217]
[1724549153906,9.62450595,159.71,159.65,2.75462217]
[1724549154098,9.62450595,159.71,159.63,15.4158]
[1724549154423,9.62450595,159.71,159.64,2.75446278]
[1724549154619,9.62450595,159.71,159.65,2.75446278]
[1724549154833,9.62450595,159.71,159.63,15.4158]
[1724549154996,9.62450595,159.71,159.64,2.75446559]
[1724549155201,9.62450595,159.71,159.65,2.75446559]
[1724549155427,9.62450595,159.71,159.64,20.0]
[1724549155632,9.62450595,159.71,159.65,2.75446531]
[1724549155823,9.62450595,159.71,159.64,20.0]
[1724549159842,9.62450595,159.69,159.63,15.4158]
[1724549161715,6.54650336,159.74,159.65,9.62450595]
[1724549161909,9.62450595,159.75,159.66,20.0]
[1724549162336,9.62450595,159.75,159.67,1.25253305]
[1724549162528,9.62450595,159.75,159.66,20.0]
[1724549163436,21.58177875,159.77,159.66,20.0]
[1724549163628,9.62450595,159.75,159.66,20.0]
[1724549163947,9.62450595,159.75,159.67,19.9684776]
[1724549164121,9.62450595,159.75,159.68,20.0]
[1724549167117,21.58177875,159.77,159.68,20.0]
[1724549167320,6.54037875,159.77,159.68,26.0051]
[1724549168725,9.62450595,159.76,159.68,26.0051]
[1724549169850,9.62450595,159.76,159.69,4.55202814]
[1724549170441,9.62450595,159.78,159.69,14.17653409]
[1724549170633,9.62450595,159.78,159.7,20.0]
[1724549175421,9.62450595,159.76,159.68,6.0051]
[1724549175633,9.62450595,159.76,159.68,10.55718226]
[1724549176140,9.62450595,159.76,159.68,6.0051]
[1724549176330,9.62450595,159.76,159.67,15.4158]
[1724549176331,9.62450595,159.72,159.67,15.4158]
[1724549177131,6.259,159.77,159.67,15.4158]
[1724549177324,9.62450595,159.74,159.67,15.4158]
[1724549177919,9.62450595,159.75,159.67,15.4158]
[1724549178125,9.62450595,159.75,159.68,20.0]
[1724549178344,9.62450595,159.77,159.68,20.0]
[1724549178922,9.62450595,159.77,159.69,1.25221048]
[1724549180047,9.62450595,159.77,159.68,20.0]
[1724549180621,21.58667586,159.81,159.68,20.0]
[1724549180826,9.62450595,159.79,159.69,11.11242844]
[1724549181049,9.62450595,159.79,159.7,20.0]
[1724549183465,9.62450595,159.79,159.72,15.9369]
[1724549198823,9.62450595,159.77,159.72,15.9369]
[1724549202511,7.12450595,159.75,159.72,15.9369]
[1724549203997,7.12450595,159.75,159.69,22.9223]
[1724549204722,9.62450595,159.73,159.69,22.9223]
[1724549206420,21.77078046,159.8,159.69,22.9223]
[1724549206421,6.259,159.77,159.69,22.9223]
[1724549206732,9.62450595,159.75,159.69,22.9223]
[1724549208033,9.62450595,159.74,159.69,22.9223]
[1724549210008,21.77078046,159.8,159.69,22.9223]
[1724549210206,9.62450595,159.76,159.69,22.9223]
[1724549211517,9.62450595,159.76,159.7,4.55229031]
[1724549212729,9.62450595,159.74,159.7,4.55229031]
[1724549212931,9.62450595,159.74,159.71,1.56708303]
[1724549213137,9.62450595,159.74,159.72,1.56708303]
[1724549213339,9.62450595,159.74,159.7,4.55229031]
[1724549213522,9.62450595,159.74,159.71,1.56709249]
[1724549213723,9.62450595,159.74,159.69,22.9223]
[1724549213931,9.62450595,159.74,159.7,1.56723258]
[1724549214247,9.62450595,159.74,159.69,16.3618]
[1724549219445,9.62450595,159.74,159.7,1.567251]
[1724549219653,9.62450595,159.74,159.69,16.3618]
[1724549219854,9.62450595,159.74,159.7,1.56719753]
[1724549220020,9.62450595,159.74,159.69,16.3618]
[1724549220220,9.62450595,159.74,159.7,1.56719753]
[1724549220521,9.62450595,159.74,159.69,16.3618]
[1724549220722,9.62450595,159.74,159.7,1.56722383]
[1724549220948,9.62450595,159.74,159.69,16.3618]
[1724549221149,9.62450595,159.77,159.7,1.56719761]
[1724549221445,9.62450595,159.77,159.71,1.56719761]
[1724549221648,9.62450595,159.77,159.69,16.3618]
[1724549221845,9.62450595,159.77,159.7,1.56710034]
[1724549222052,9.62450595,159.77,159.71,1.56710034]
[1724549222233,9.62450595,159.77,159.72,1.56704604]
[1724549222551,9.62450595,159.77,159.7,6.4191]
[1724549222746,9.62450595,159.77,159.71,1.56704724]
[1724549222933,9.62450595,159.77,159.72,1.56704724]
[1724549223135,6.53456137,159.79,159.71,1.25224232]
[1724549223333,54.62450595,159.78,159.72,1.56700872]
[1724549223552,54.62450595,159.78,159.71,21.25216]
[1724549223848,54.62450595,159.78,159.72,1.56700856]
[1724549224048,54.62450595,159.78,159.71,20.0]
[1724549224350,54.62450595,159.78,159.72,1.56702635]
[1724549224533,54.62450595,159.78,159.71,20.0]
[1724549224951,54.62450595,159.78,159.72,1.56701276]
[1724549225256,54.62450595,159.78,159.7,6.4191]
[1724549225439,54.62450595,159.78,159.71,1.5670361]
[1724549225629,54.62450595,159.78,159.7,10.9713125]
[1724549225630,54.62450595,159.78,159.72,1.5670361]
[1724549225828,54.62450595,159.78,159.7,10.9713125]
[1724549226044,54.62450595,159.78,159.71,6.11924876]
[1724549226241,54.62450595,159.78,159.72,1.56703626]
[1724549226447,54.62450595,159.78,159.73,1.56703626]
[1724549226654,54.62450595,159.78,159.71,4.5522125]
[1724549226842,54.62450595,159.78,159.72,1.56689809]
[1724549227153,54.62450595,159.78,159.73,1.56689809]
[1724549227329,54.62450595,159.78,159.71,4.5522125]
[1724549227534,54.62450595,159.78,159.72,1.5668874]
[1724549227841,54.62450595,159.78,159.73,1.5668874]
[1724549228043,54.62450595,159.78,159.71,4.5522125]
[1724549228358,54.62450595,159.78,159.7,6.4191]
[1724549228657,54.62450595,159.78,159.72,1.56689621]
[1724549229037,54.62450595,159.78,159.73,1.56689621]
[1724549229236,54.62450595,159.78,159.71,4.55183014]
[1724549229441,54.62450595,159.78,159.72,1.56688252]
[1724549229639,54.62450595,159.78,159.73,1.56688252]
[1724549229834,54.62450595,159.78,159.7,6.4191]
[1724549230036,54.62450595,159.78,159.71,6.11867627]
[1724549230245,54.62450595,159.78,159.72,1.56688313]
[1724549230461,54.62450595,159.78,159.73,1.56688313]
[1724549230643,54.62450595,159.78,159.71,4.55179314]
[1724549230853,45.0,159.78,159.72,1.56689149]
[1724549231155,54.62450595,159.78,159.71,4.55180492]
[1724549231356,54.62450595,159.78,159.73,1.56688699]
[1724549231534,54.62450595,159.78,159.71,4.55180492]
[1724549231733,54.62450595,159.78,159.72,1.56689575]
[1724549231952,54.62450595,159.78,159.73,1.56689575]
[1724549232156,54.62450595,159.78,159.71,4.5518297]
[1724549232364,54.62450595,159.78,159.72,1.56689621]
[1724549232536,54.62450595,159.78,159.73,1.56689621]
[1724549232860,54.62450595,159.78,159.71,4.5518297]
[1724549233069,54.62450595,159.78,159.72,1.56689597]
[1724549233363,54.62450595,159.78,159.71,4.5518297]
[1724549233364,9.62450595,159.76,159.73,1.56689597]
[1724549233561,9.62450595,159.76,159.71,4.5518297]
[1724549233767,9.62450595,159.76,159.72,1.56693323]
[1724549233965,9.62450595,159.76,159.73,1.56693323]
[1724549234165,9.62450595,159.76,159.71,4.5518297]
[1724549234350,9.62450595,159.76,159.72,1.56691503]
[1724549234554,9.62450595,159.76,159.71,4.5518297]
[1724549234750,9.62450595,159.74,159.7,11.89430061]
[1724549234968,9.62450595,159.74,159.69,16.3618]
[1724549235256,6.259,159.77,159.69,16.3618]
[1724549235459,9.62450595,159.75,159.69,16.3618]
[1724549236266,9.62450595,159.73,159.66,6.5502]
[1724549236481,9.62450595,159.73,159.66,11.10302822]
[1724549236846,9.62450595,159.73,159.66,6.5502]
[1724549237270,9.62450595,159.71,159.65,15.8434]
[1724549237475,9.62450595,159.69,159.65,15.8434]
[1724549237647,9.62450595,159.69,159.62,14.57482768]
[1724549237648,9.62450595,159.69,159.62,6.5502]
[1724549237975,9.62450595,159.69,159.62,11.10423152]
[1724549238373,9.62450595,159.69,159.62,6.5502]
[1724549239444,51.261,159.72,159.62,6.5502]
[1724549239677,9.62450595,159.69,159.62,6.5502]
[1724549241572,9.62450595,159.67,159.61,15.8434]
[1724549241898,9.62450595,159.65,159.61,15.8434]
[1724549243188,9.62450595,159.65,159.58,6.5502]
[1724549243354,15.88910595,159.63,159.56,15.8434]
[1724549243557,16.281,159.67,159.56,15.8434]
[1724549243558,9.62450595,159.61,159.56,15.8434]
[1724549243748,9.62450595,159.59,159.52,15.8434]
[1724549247458,12.8976,159.63,159.52,15.8434]
[1724549247660,9.62450595,159.6,159.52,15.8434]
[1724549248581,45.0,159.59,159.52,15.8434]
[1724549248783,6.51899479,159.62,159.53,1.25360577]
[1724549248983,54.62450595,159.61,159.53,20.0]
[1724549251885,54.62450595,159.61,159.53,21.25355946]
[1724549252197,54.62450595,159.61,159.53,20.0]
[1724549252394,54.62450595,159.61,159.53,21.25346884]
[1724549253594,54.62450595,159.61,159.53,20.0]
[1724549254594,9.62450595,159.62,159.54,1.25346361]